Workbook

Sheet Total Cost
B3: Ref w/o CO2 | C3: 2021 | D3: =C3+1 -> 2022 | E3: =D3+1 -> 2023 | F3: 2024 | G3: 2025 | H3: 2026 | I3: 2027 | J3: 2028 | K3: 2029 | L3: 2030 | M3: 2031 | N3: 2032 | O3: 2033 | P3: 2034 | Q3: 2035 | R3: 2036 | S3: 2037 | T3: 2038 | U3: 2039 | V3: 2040 | W3: 2041 | X3: =W3+1 -> 2042 | Y3: =X3+1 -> 2043 | Z3: =Y3+1 -> 2044 | AA3: =Z3+1 -> 2045 | AB3: =AA3+1 -> 2046 | AC3: =AB3+1 -> 2047 | AD3: =AC3+1 -> 2048 | AE3: =AD3+1 -> 2049 | AF3: 2050
B4: Opt Ref w/CO2 (High gas) | C4: 188366.0481 | D4: 313851.7059 | E4: 443628.7124 | F4: 606979.7809 | G4: 711696.8274 | H4: 835799.8681 | I4: 936329.825 | J4: 1034905.807 | K4: 1134243.37 | L4: 1253708.837 | M4: 1354692.32 | N4: 1452252.871 | O4: 1553815.757 | P4: 1658232.925 | Q4: 1789662.141
B5: Opt Ref w/CO2 (Base gas) | C5: 188317.4676 | D5: 315322.951 | E5: 444567.2668 | F5: 602770.1688 | G5: 702532.8818 | H5: 800308.8907 | I5: 915191.3012 | J5: 1030863.58 | K5: 1149176.712 | L5: 1271360.034 | M5: 1390812.954 | N5: 1505119.629 | O5: 1618200.957 | P5: 1726588.332 | Q5: 1833695.35
B6: Opt Ref w/CO2 (Low gas) | C6: 189481.6845 | D6: 319108.0547 | E6: 444275.3581 | F6: 601767.2204 | G6: 699319.69 | H6: 788445.8036 | I6: 883735.2378 | J6: 979825.0348 | K6: 1081988.328 | L6: 1191849.774 | M6: 1301957.134 | N6: 1407469.102 | O6: 1509696.908 | P6: 1607873.746 | Q6: 1703774.346
B7: Opt Ref w/o CO2 (High gas) | C7: 172953.975 | D7: 300524.9028 | E7: 430397.1797 | F7: 593759.6191 | G7: 699105.5281 | H7: 824100.7905 | I7: 924887.4762 | J7: 1022281.296 | K7: 1120832.339 | L7: 1238552.078 | M7: 1332557.641 | N7: 1437338.477 | O7: 1586411.499 | P7: 1686444.931 | Q7: 1778036.12
B8: Opt Ref w/o CO2 (Base gas) | C8: 172312.3351 | D8: 298926.2207 | E8: 429645.9598 | F8: 592304.1581 | G8: 696786.5737 | H8: 820361.7404 | I8: 919604.9328 | J8: 1015794.049 | K8: 1114350.465 | L8: 1228785.951 | M8: 1321651.565 | N8: 1422358.784 | O8: 1568384.203 | P8: 1663893.971 | Q8: 1751012.623
B9: Opt Ref w/o CO2 (Low gas) | C9: 169784.3258 | D9: 294537.2764 | E9: 420659.3751 | F9: 579049.5007 | G9: 676622.664 | H9: 765844.2879 | I9: 861148.7951 | J9: 957172.9466 | K9: 1059486.359 | L9: 1169345.84 | M9: 1279461.439 | N9: 1384903.262 | O9: 1487254.287 | P9: 1584965.644 | Q9: 1680129.054
B10: EB2 (Gas Conversion) | C10: 188828.6008 | D10: 318454.2354 | E10: 448046.6686 | F10: 611504.3457 | G10: 711443.9199 | H10: 807525.5343 | I10: 906784.0344 | J10: 1001262.186 | K10: 1093322.434 | L10: 1271476.085 | M10: 1403733.781 | N10: 1530378.805 | O10: 1654961.363 | P10: 1774507.564 | Q10: 1890379.82
B11: EB2 (CC replacement) | C11: 189369.971 | D11: 317327.7091 | E11: 449274.3525 | F11: 607921.4285 | G11: 708332.2131 | H11: 805102.8548 | I11: 901138.3136 | J11: 994689.2759 | K11: 1085972.369 | L11: 1207301.847 | M11: 1327718.89 | N11: 1444485.215 | O11: 1559896.733 | P11: 1671523.669 | Q11: 1779043.963
B12: EB2 (CT replacement) | C12: 189014.3055 | D12: 316080.0699 | E12: 447031.0882 | F12: 609313.1952 | G12: 708639.457 | H12: 805741.1002 | I12: 904932.0885 | J12: 998844.7614 | K12: 1091068.377 | L12: 1210439.182 | M12: 1328861.868 | N12: 1443270.923 | O12: 1555554.211 | P12: 1663716.651 | Q12: 1768941.19
B13: EB2 (Renewables replacement) | C13: 188160.5317 | D13: 316559.1982 | E13: 446744.3809 | F13: 628474.2489 | G13: 757483.903 | H13: 892411.6018 | I13: 1034469.466 | J13: 1177986.431 | K13: 1323306.679 | L13: 1508291.533 | M13: 1668076.058 | N13: 1821796.069 | O13: 1971536.585 | P13: 2115631.535 | Q13: 2255203.634
B14: Transition A | C14: 190100.0189 | D14: 320787.9877 | E14: 454139.1286 | F14: 624959.9374 | G14: 760442.306 | H14: 872822.957 | I14: 987335.7232 | J14: 1093658.877 | K14: 1198278.676 | L14: 1303881.833 | M14: 1403523.006 | N14: 1501028.62 | O14: 1596057.708 | P14: 1689009.181 | Q14: 1803902.396
B15: Transition B | C15: 190008.7842 | D15: 325660.225 | E15: 463842.5927 | F15: 645840.843 | G15: 775780.6132 | H15: 925961.3503 | I15: 1060216.756 | J15: 1187687.222 | K15: 1313679.26 | L15: 1440713.642 | M15: 1555842.837 | N15: 1670451.072 | O15: 1783105.866 | P15: 1894784.089 | Q15: 2023062.005
B17: Ref w/CO2
B18: Opt Ref w/CO2 (High gas) | C18: 188488.1154 | D18: 315927.0329 | E18: 447177.1572 | F18: 612634.6586 | G18: 734832.0204 | H18: 891355.1121 | I18: 1033733.249 | J18: 1180122.227 | K18: 1336522.667 | L18: 1518064.136 | M18: 1684990.887 | N18: 1844484.61 | O18: 2007318.33 | P18: 2169003.109 | Q18: 2328472.296
B19: Opt Ref w/CO2 (Base gas) | C19: 190029.2488 | D19: 317591.5148 | E19: 448743.3192 | F19: 606947.2375 | G19: 725793.642 | H19: 856218.3863 | I19: 990752.0773 | J19: 1130419.523 | K19: 1276651.921 | L19: 1429776.877 | M19: 1583189.032 | N19: 1733199.509 | O19: 1883182.814 | P19: 2029525.055 | Q19: 2176591.355
B20: Opt Ref w/CO2 (Low gas) | C20: 189481.6845 | D20: 319108.0547 | E20: 444275.3581 | F20: 601767.2204 | G20: 709661.8347 | H20: 821487.6509 | I20: 945854.6242 | J20: 1076573.999 | K20: 1217373.864 | L20: 1368675.069 | M20: 1523096.372 | N20: 1674113.515 | O20: 1824791.201 | P20: 1971601.626 | Q20: 2118101.527
B21: Opt Ref w/o CO2 (High gas) | C21: 172953.975 | D21: 300524.9028 | E21: 430397.1797 | F21: 593759.6191 | G21: 715892.0671 | H21: 873130.7985 | I21: 1015783.588 | J21: 1161566.938 | K21: 1317187.836 | L21: 1497130.203 | M21: 1659234.189 | N21: 1827587.677 | O21: 2041479.079 | P21: 2202083.238 | Q21: 2354912.593
B22: Opt Ref w/o CO2 (Base gas) | C22: 172312.3351 | D22: 298926.2207 | E22: 429645.9598 | F22: 592304.1581 | G22: 714448.1201 | H22: 871234.3741 | I22: 1013480.836 | J22: 1159253.174 | K22: 1314793.429 | L22: 1494624.155 | M22: 1656666.242 | N22: 1824881.214 | O22: 2038852.114 | P22: 2199629.38 | Q22: 2353358.189
B23: Opt Ref w/o CO2 (Low gas) | C23: 169784.3258 | D23: 294537.2764 | E23: 420659.3751 | F23: 579049.5007 | G23: 686935.9494 | H23: 798848.6116 | I23: 923240.0064 | J23: 1053925.248 | K23: 1194816.262 | L23: 1346106.342 | M23: 1500545.047 | N23: 1651513.916 | O23: 1802322.176 | P23: 1949126.976 | Q23: 2095912.219
B24: EB2 (Gas Conversion) | C24: 188828.6008 | D24: 318454.2354 | E24: 448046.6686 | F24: 611504.3457 | G24: 729358.5993 | H24: 858192.2291 | I24: 1000113.909 | J24: 1143722.618 | K24: 1293431.62 | L24: 1506130.405 | M24: 1676459.422 | N24: 1841888.25 | O24: 2006385.381 | P24: 2165226.248 | Q24: 2322784.621
B25: EB2 (CC replacement) | C25: 189369.971 | D25: 317327.7091 | E25: 449274.3525 | F25: 607921.4285 | G25: 725231.3272 | H25: 854862.7791 | I25: 994018.276 | J25: 1136551.007 | K25: 1285765.473 | L25: 1438623.4 | M25: 1593755.19 | N25: 1747216.788 | O25: 1900755.052 | P25: 2051222.441 | Q25: 2198905.887
B26: EB2 (CT replacement) | C26: 189014.3055 | D26: 316080.0699 | E26: 447031.0882 | F26: 609424.868 | G26: 726139.2389 | H26: 856360.2058 | I26: 998424.2925 | J26: 1141786.667 | K26: 1291557.313 | L26: 1447635.402 | M26: 1606037.239 | N26: 1760675.629 | O26: 1914707.005 | P26: 2063852.729 | Q26: 2212139.536
B27: EB2 (Renewables replacement) | C27: 188160.5317 | D27: 316559.1982 | E27: 446744.3809 | F27: 628474.2489 | G27: 773548.687 | H27: 937798.2733 | I27: 1116041.606 | J27: 1300782.701 | K27: 1491681.519 | L27: 1697093.711 | M27: 1877096.174 | N27: 2049904.595 | O27: 2218133.939 | P27: 2379346.653 | Q27: 2535528.737
B28: Transition A | C28: 189588.5113 | D28: 320221.2096 | E28: 453937.318 | F28: 625347.8548 | G28: 777432.3471 | H28: 922826.017 | I28: 1078197.757 | J28: 1232052.601 | K28: 1392844.557 | L28: 1560156.156 | M28: 1726587.86 | N28: 1887064.905 | O28: 2046572.435 | P28: 2200752.293 | Q28: 2354166.512
B29: Transition B | C29: 190723.322 | D29: 324636.3198 | E29: 463907.9227 | F29: 647346.4781 | G29: 793872.4136 | H29: 975189.3353 | I29: 1148591.318 | J29: 1319843.093 | K29: 1497210.852 | L29: 1679804.104 | M29: 1854670.031 | N29: 2024173.157 | O29: 2192207.753 | P29: 2355364.295 | Q29: 2511753.489
